fUSD/lending_fUSD_20241023
["ID","MTS","AMOUNT","RATE_DAILY","PERIOD"]
[340710923,1729696290994,-1263.76,0.00054617,120]
[340710924,1729696291003,-1052.1,0.00054617,120]
[340710925,1729696291012,-518.32,0.00054617,120]
[340710926,1729696291022,-1190.96,0.00054617,120]
[340710927,1729696291031,-639.92,0.00054626,120]
[340710928,1729696291043,-500.0,0.00054626,120]
[340710929,1729696291053,-1145.77,0.00054626,120]
[340710930,1729696291063,-1096.93,0.00054626,120]
[340710931,1729696291072,-1101.51,0.00054626,120]
[340710932,1729696291081,-670.28,0.00054626,120]
[340710933,1729696291091,-500.0,0.00054626,120]
[340710934,1729696291100,-523.98107543,0.00054626,120]
[340710935,1729696291110,-657.44,0.00054626,120]
[340710936,1729696291119,-2806.4,0.00054626,120]
[340710937,1729696291129,-1534.31,0.00054626,120]
[340710938,1729696291138,-1291.941209,0.00054627,120]
[340710939,1729696291147,-45309.00647678,0.00054627,61]
[340710940,1729696291156,-586.39,0.00054627,120]
[340710941,1729696291166,-151.86437334,0.00054627,120]
[340710942,1729696291175,-500.0,0.00054627,120]
[340710943,1729696291184,-505.37,0.00054627,120]
[340710944,1729696291194,-554.06,0.00054627,120]
[340710945,1729696291203,-512.94,0.00054627,120]
[340710946,1729696291212,-500.0,0.00054627,120]
[340710947,1729696291223,-1145.54,0.00054627,120]
[340710948,1729696291232,-672.92,0.00054627,120]
[340710949,1729696291242,-542.37,0.00054627,120]
[340710950,1729696291251,-500.0,0.00054627,120]
[340710951,1729696291261,-922.62,0.00054627,120]
[340710952,1729696291270,-584.33,0.00054627,120]
[340710953,1729696291280,-753.53,0.00054627,120]
[340710954,1729696291293,-500.0,0.00054627,120]
[340710955,1729696291302,-968.55,0.00054627,120]
[340710956,1729696291312,-1925.48,0.00054627,120]
[340710957,1729696291322,-1030.77,0.00054627,120]
[340710958,1729696291338,-1363.34,0.00054627,120]
[340710959,1729696291348,-500.0,0.00054627,120]
[340710960,1729696291357,-847.01,0.00054627,120]
[340710961,1729696291368,-700.02,0.00054627,120]
[340710962,1729696291379,-622.74,0.00054627,120]
[340710963,1729696291389,-601.0,0.00054627,120]
[340710964,1729696291399,-1335.55,0.00054627,120]
[340710965,1729696291410,-884.17,0.00054627,120]
[340710966,1729696291421,-500.0,0.00054627,120]
[340710967,1729696291431,-500.0,0.00054627,7]
[340710968,1729696291440,-1593.84,0.00054627,120]
[340710969,1729696291450,-835.69,0.000547,120]
[340710970,1729696291459,-935.08,0.000547,120]
[340710971,1729696291468,-500.0,0.000547,120]
[340710972,1729696291478,-500.0,0.000547,120]
[340710973,1729696291487,-2535.29,0.000547,120]
[340710974,1729696291496,-1430.45,0.000547,120]
[340710975,1729696291505,-2063.97,0.000547,120]
[340710976,1729696291515,-500.0,0.000547,120]
[340710977,1729696291524,-805.45,0.000547,120]
[340710978,1729696291534,-500.0,0.00054701,120]
[340710979,1729696291545,-1011.7,0.00054701,120]
[340710980,1729696291554,-726.23,0.00054701,120]
[340710981,1729696291564,-478.81114862,0.00054701,120]
[340710982,1729696291573,-170.78019693,0.00054701,120]
[340710983,1729696291582,-158.642038,0.00054715,120]
[340710984,1729696291591,-1333.47,0.00054716,120]
[340710985,1729696291600,-947.6,0.00054716,120]
[340710986,1729696291610,-1028.07,0.00054716,120]
[340710987,1729696291619,-650.47,0.00054716,120]
[340710988,1729696291628,-1207.39,0.00054716,120]
[340710989,1729696291638,-833.24,0.00054716,120]
[340710990,1729696291647,-205.0,0.0005479,30]
[340710991,1729696291657,-210.0,0.0005479,30]
[340710992,1729696291666,-203.0,0.0005479,30]
[340710993,1729696291676,-215.0,0.0005479,30]
[340710994,1729696291685,-937.0,0.00054794,30]
[340710995,1729696291694,-11685.025,0.00054794,120]
[340710996,1729696291704,-4516.40024753,0.00054794,14]
[340710997,1729696291714,-5800.0,0.00054794,14]
[340710998,1729696291723,-2110.0,0.00054794,2]
[340710999,1729696291733,-1538.65,0.00054794,120]
[340711000,1729696291743,-1538.65,0.00054794,120]
[340711001,1729696291752,-1538.65,0.00054794,120]
[340711002,1729696291761,-1538.65,0.00054794,120]
[340711003,1729696291771,-1538.65,0.00054794,120]
[340711004,1729696291780,-1538.65,0.00054794,120]
[340711005,1729696291790,-1538.65,0.00054794,120]
[340711006,1729696291800,-1538.65,0.00054794,120]
[340711007,1729696291809,-1538.65,0.00054794,120]
[340711008,1729696291819,-1538.65,0.00054794,120]
[340711009,1729696291829,-1538.65,0.00054794,120]
[340711010,1729696291840,-1538.65,0.00054794,120]
[340711011,1729696291852,-1538.65,0.00054794,120]
[340711012,1729696291863,-1538.65,0.00054794,120]
[340711013,1729696291873,-1538.65,0.00054794,120]
[340711014,1729696291883,-1538.65,0.00054794,120]
[340711015,1729696291894,-1538.65,0.00054794,120]
[340711016,1729696291903,-1538.65,0.00054794,120]
[340711017,1729696291912,-1538.65,0.00054794,120]
[340711018,1729696291922,-500.0,0.00054794,120]
[340711019,1729696291932,-500.0,0.00054794,120]
[340711020,1729696291942,-446.39193476,0.00054794,120]
[340711021,1729696291952,-500.0,0.00054794,120]
[340711022,1729696291963,-500.0,0.00054794,120]
[340711023,1729696291973,-500.0,0.00054794,120]
[340711024,1729696291984,-500.0,0.00054794,120]
[340711025,1729696291993,-500.0,0.00054794,120]
[340711026,1729696292003,-500.0,0.00054794,120]
[340711027,1729696292012,-500.0,0.00054794,120]
[340711028,1729696292023,-500.0,0.00054794,120]
[340711029,1729696292032,-500.0,0.00054794,120]
[340711030,1729696292043,-500.0,0.00054794,120]
[340711031,1729696292052,-439.87495068,0.00054794,120]
[340711032,1729696292061,-150.0,0.00054795,120]
[340711033,1729696292071,-150.0,0.00054795,120]
[340711034,1729696292080,-150.46957287,0.00054795,120]
[340711035,1729696292089,-154.43534876,0.00054795,120]
[340711036,1729696292099,-150.0,0.00054795,120]
[340711037,1729696292109,-150.0,0.00054795,120]
[340711038,1729696292118,-276.70969587,0.00054795,120]
[340711039,1729696292128,-150.0,0.00054795,120]
[340711040,1729696292137,-151.2448651,0.00054795,120]
[340711041,1729696292147,-150.0,0.00054795,120]
[340711042,1729696292156,-153.0,0.00054795,120]
[340711043,1729696292165,-153.0,0.00054795,120]
[340711044,1729696292174,-153.0,0.00054795,120]
[340711045,1729696292183,-153.0,0.00054795,120]
[340711046,1729696292191,-153.0,0.00054795,120]
[340711047,1729696292201,-153.0,0.00054795,120]
[340711048,1729696292210,-153.0,0.00054795,120]
[340711049,1729696292219,-153.0,0.00054795,120]
[340711050,1729696292228,-153.0,0.00054795,120]
[340711051,1729696292236,-153.0,0.00054795,120]
[340711052,1729696292245,-453.0,0.00054795,120]
[340711053,1729696292254,-453.0,0.00054795,120]
[340711054,1729696292263,-453.0,0.00054795,120]
[340711055,1729696292272,-453.0,0.00054795,120]
[340711056,1729696292284,-453.0,0.00054795,120]
[340711057,1729696292295,-453.0,0.00054795,120]
[340711058,1729696292304,-453.0,0.00054795,120]
[340711059,1729696292313,-453.0,0.00054795,120]
[340711060,1729696292323,-453.0,0.00054795,120]
[340711061,1729696292337,-453.0,0.00054795,120]
[340711062,1729696292348,-453.0,0.00054795,120]
[340711063,1729696292358,-453.0,0.00054795,120]
[340711064,1729696292369,-453.0,0.00054795,120]
[340711065,1729696292379,-153.0,0.00054795,120]
[340711066,1729696292388,-153.0,0.00054795,120]
[340711067,1729696292397,-153.0,0.00054795,120]
[340711068,1729696292407,-153.0,0.00054795,120]
[340711069,1729696292416,-153.0,0.00054795,120]
[340711070,1729696292425,-153.0,0.00054795,120]
[340711071,1729696292434,-153.0,0.00054795,120]
[340711072,1729696292443,-153.0,0.00054795,120]
[340711073,1729696292452,-153.0,0.00054795,120]
[340711074,1729696292460,-153.0,0.00054795,120]
[340711075,1729696292469,-153.0,0.00054795,120]
[340711076,1729696292478,-153.0,0.00054795,120]
[340711077,1729696292487,-453.0,0.00054795,120]
[340711078,1729696292496,-453.0,0.00054795,120]
[340711079,1729696292506,-453.0,0.00054795,120]
[340711080,1729696292515,-453.0,0.00054795,120]
[340711081,1729696292525,-453.0,0.00054795,120]
[340711082,1729696292534,-453.0,0.00054795,120]
[340711083,1729696292544,-453.0,0.00054795,120]
[340711084,1729696292553,-453.0,0.00054795,120]
[340711085,1729696292562,-453.0,0.00054795,120]
[340711086,1729696292571,-453.0,0.00054795,120]
[340711087,1729696292581,-453.0,0.00054795,120]
[340711088,1729696292590,-453.0,0.00054795,120]
[340711089,1729696292599,-453.0,0.00054795,120]
[340711090,1729696292608,-453.0,0.00054795,120]
[340711091,1729696292617,-153.0,0.00054795,120]
[340711092,1729696292626,-153.0,0.00054795,120]
[340711093,1729696292635,-153.0,0.00054795,120]
[340711094,1729696292644,-153.0,0.00054795,120]
[340711095,1729696292653,-153.0,0.00054795,120]
[340711096,1729696292663,-153.0,0.00054795,120]
[340711097,1729696292672,-153.0,0.00054795,120]
[340711098,1729696292683,-153.0,0.00054795,120]
[340711099,1729696292692,-153.0,0.00054795,120]
[340711100,1729696292706,-153.0,0.00054795,120]
[340711101,1729696292715,-153.0,0.00054795,120]
[340711102,1729696292725,-153.0,0.00054795,120]
[340711103,1729696292734,-453.0,0.00054795,120]
[340711104,1729696292743,-453.0,0.00054795,120]
[340711105,1729696292752,-453.0,0.00054795,120]
[340711106,1729696292762,-453.0,0.00054795,120]
[340711107,1729696292771,-453.0,0.00054795,120]
[340711108,1729696292780,-453.0,0.00054795,120]
[340711109,1729696292791,-453.0,0.00054795,120]
[340711110,1729696292800,-453.0,0.00054795,120]
[340711111,1729696292810,-453.0,0.00054795,120]
[340711112,1729696292819,-453.0,0.00054795,120]
[340711113,1729696292831,-453.0,0.00054795,120]
[340711114,1729696292841,-453.0,0.00054795,120]
[340711115,1729696292851,-453.0,0.00054795,120]
[340711116,1729696292860,-453.0,0.00054795,120]
[340711117,1729696292869,-153.0,0.00054795,120]
[340711118,1729696292879,-153.0,0.00054795,120]
[340711119,1729696292888,-153.0,0.00054795,120]
[340711120,1729696292897,-153.0,0.00054795,120]
[340711121,1729696292907,-153.0,0.00054795,120]
[340711122,1729696292917,-153.0,0.00054795,120]
[340711123,1729696292927,-153.0,0.00054795,120]
[340711124,1729696292936,-153.0,0.00054795,120]
[340711125,1729696292945,-153.0,0.00054795,120]
[340711126,1729696292955,-153.0,0.00054795,120]
[340711127,1729696292964,-153.0,0.00054795,120]
[340711128,1729696292973,-153.0,0.00054795,120]
[340711129,1729696292982,-453.0,0.00054795,120]
[340711130,1729696292992,-453.0,0.00054795,120]
[340711131,1729696293001,-453.0,0.00054795,120]
[340711132,1729696293011,-453.0,0.00054795,120]
[340711133,1729696293021,-453.0,0.00054795,120]
[340711134,1729696293030,-453.0,0.00054795,120]
[340711135,1729696293042,-453.0,0.00054795,120]
[340711136,1729696293051,-453.0,0.00054795,120]
[340711137,1729696293061,-453.0,0.00054795,120]
[340711138,1729696293071,-453.0,0.00054795,120]
[340711139,1729696293081,-453.0,0.00054795,120]
[340711140,1729696293091,-453.0,0.00054795,120]
[340711141,1729696293101,-453.0,0.00054795,120]
[340711142,1729696293111,-453.0,0.00054795,120]
[340711143,1729696293120,-153.0,0.00054795,120]
[340711144,1729696293130,-153.0,0.00054795,120]
[340711145,1729696293139,-153.0,0.00054795,120]
[340711146,1729696293149,-153.0,0.00054795,120]
[340711147,1729696293158,-153.0,0.00054795,120]
[340711148,1729696293168,-153.0,0.00054795,120]
[340711149,1729696293177,-153.0,0.00054795,120]
[340711150,1729696293340,-153.0,0.00054795,120]
[340711151,1729696293349,-153.0,0.00054795,120]
[340711152,1729696293359,-153.0,0.00054795,120]
[340711153,1729696293369,-153.0,0.00054795,120]
[340711154,1729696293379,-153.0,0.00054795,120]
[340711155,1729696293388,-453.0,0.00054795,120]
[340711156,1729696293398,-453.0,0.00054795,120]
[340711157,1729696293409,-453.0,0.00054795,120]
[340711158,1729696293419,-453.0,0.00054795,120]
[340711159,1729696293428,-453.0,0.00054795,120]
[340711160,1729696293438,-453.0,0.00054795,120]
[340711161,1729696293447,-453.0,0.00054795,120]
[340711162,1729696293456,-453.0,0.00054795,120]
[340711163,1729696293466,-453.0,0.00054795,120]
[340711164,1729696293477,-453.0,0.00054795,120]
[340711165,1729696293486,-453.0,0.00054795,120]
[340711166,1729696293496,-453.0,0.00054795,120]
[340711167,1729696293506,-453.0,0.00054795,120]
[340711168,1729696293516,-453.0,0.00054795,120]
[340711169,1729696293525,-153.0,0.00054795,120]
[340711170,1729696293535,-153.0,0.00054795,120]
[340711171,1729696293548,-153.0,0.00054795,120]
[340711172,1729696293558,-153.0,0.00054795,120]
[340711173,1729696293568,-153.0,0.00054795,120]
[340711174,1729696293578,-153.0,0.00054795,120]
[340711175,1729696293588,-153.0,0.00054795,120]
[340711176,1729696293598,-153.0,0.00054795,120]
[340711177,1729696293607,-153.0,0.00054795,120]
[340711178,1729696293616,-153.0,0.00054795,120]
[340711179,1729696293626,-153.0,0.00054795,120]
[340711180,1729696293635,-153.0,0.00054795,120]
[340711181,1729696293645,-453.0,0.00054795,120]
[340711182,1729696293655,-453.0,0.00054795,120]
[340711183,1729696293664,-453.0,0.00054795,120]
[340711184,1729696293675,-453.0,0.00054795,120]
[340711185,1729696293685,-453.0,0.00054795,120]
[340711186,1729696293694,-453.0,0.00054795,120]
[340711187,1729696293704,-453.0,0.00054795,120]
[340711188,1729696293713,-453.0,0.00054795,120]
[340711189,1729696293723,-453.0,0.00054795,120]
[340711190,1729696293732,-453.0,0.00054795,120]
[340711191,1729696293741,-453.0,0.00054795,120]
[340711192,1729696293750,-453.0,0.00054795,120]
[340711193,1729696293759,-453.0,0.00054795,120]
[340711194,1729696293769,-453.0,0.00054795,120]
[340711195,1729696293778,-153.0,0.00054795,120]
[340711196,1729696293787,-153.0,0.00054795,120]
[340711197,1729696293801,-153.0,0.00054795,120]
[340711198,1729696293811,-153.0,0.00054795,120]
[340711199,1729696293821,-153.0,0.00054795,120]
[340711200,1729696293830,-153.0,0.00054795,120]
[340711201,1729696293841,-153.0,0.00054795,120]
[340711202,1729696293850,-153.0,0.00054795,120]
[340711203,1729696293860,-153.0,0.00054795,120]
[340711204,1729696293870,-153.0,0.00054795,120]
[340711205,1729696293880,-153.0,0.00054795,120]
[340711206,1729696293890,-153.0,0.00054795,120]
[340711207,1729696293899,-453.0,0.00054795,120]
[340711208,1729696293909,-453.0,0.00054795,120]
[340711209,1729696293918,-453.0,0.00054795,120]
[340711210,1729696293928,-453.0,0.00054795,120]
[340711211,1729696293938,-453.0,0.00054795,120]
[340711212,1729696293947,-453.0,0.00054795,120]
[340711213,1729696293958,-453.0,0.00054795,120]
[340711214,1729696293968,-453.0,0.00054795,120]
[340711215,1729696293977,-453.0,0.00054795,120]
[340711216,1729696293987,-453.0,0.00054795,120]
[340711217,1729696293996,-453.0,0.00054795,120]
[340711218,1729696294005,-453.0,0.00054795,120]
[340711219,1729696294015,-453.0,0.00054795,120]
[340711220,1729696294024,-453.0,0.00054795,120]
[340711221,1729696294034,-153.0,0.00054795,120]
[340711222,1729696294046,-153.0,0.00054795,120]
[340711223,1729696294055,-153.0,0.00054795,120]
[340711224,1729696294064,-153.0,0.00054795,120]
[340711225,1729696294074,-990.0,0.00054795,120]
[340711226,1729696294084,-794.0,0.00054795,120]
[340711227,1729696294093,-563.0,0.00054795,120]
[340711228,1729696294103,-570.0,0.00054795,120]
[340711229,1729696294113,-925.0,0.00054795,120]
[340711230,1729696294123,-511.0,0.00054795,120]
[340711231,1729696294132,-165.426478,0.000548,120]
[340711232,1729696294142,-226.05103578,0.000548,120]
[340711233,1729696294151,-500.0,0.000548,120]
[340711234,1729696294161,-631.55,0.000548,120]
[340711235,1729696294171,-1067.46,0.000548,120]
[340711236,1729696294182,-932.92,0.000548,120]
[340711237,1729696294192,-1518.46,0.000548,120]
[340711238,1729696294201,-616.62,0.000548,7]
[340711239,1729696294210,-1134.13,0.000548,60]
[340711240,1729696294221,-963.46,0.000548,120]
[340711241,1729696294230,-976.56,0.000548,120]
[340711242,1729696294240,-658.07,0.000548,120]
[340711243,1729696294250,-951.13,0.000548,120]
[340711244,1729696294260,-1201.86,0.000548,120]
[340711245,1729696294270,-629.96,0.000548,120]
[340711246,1729696294280,-1045.98,0.000548,120]
[340711247,1729696294289,-6325.17211364,0.00054802,15]
[340711248,1729696294301,-150.0,0.0005484,120]
[340711249,1729696294310,-5286.1503628,0.00054864,2]
[340711250,1729696294320,-2027.6413325,0.00054864,2]
[340711251,1729696294334,-150.0,0.00054886,120]
[340711252,1729696294345,-1487.73,0.00054891,120]
[340711253,1729696294354,-958.81,0.00054891,120]
[340711254,1729696294366,-500.0,0.00054891,120]
[340711255,1729696294376,-618.61,0.00054891,120]
[340711256,1729696294386,-2827.89,0.00054891,21]
[340711257,1729696294396,-775.74,0.00054891,120]
[340711258,1729696294406,-900.97,0.00054891,120]
[340711259,1729696294416,-1263.76,0.00054891,120]
[340711260,1729696294427,-1052.1,0.00054891,120]
[340711261,1729696294437,-518.32,0.00054891,120]
[340711262,1729696294447,-1190.96,0.00054891,120]
[340711263,1729696294457,-1526.7423032,0.000549,20]
[340711264,1729696294466,-300.0,0.000549,20]
[340711265,1729696294475,-639.92,0.000549,120]
[340711266,1729696294485,-500.0,0.000549,120]
[340711267,1729696294494,-1145.77,0.000549,120]
[340711268,1729696294504,-1096.93,0.000549,120]
[340711269,1729696294514,-1101.51,0.000549,120]
[340711270,1729696294523,-670.28,0.000549,120]
[340711271,1729696294533,-500.0,0.000549,120]
[340711272,1729696294545,-657.44,0.000549,120]
[340711273,1729696294555,-2806.4,0.000549,120]
[340711274,1729696294565,-1534.31,0.000549,120]
[340711275,1729696294575,-586.39,0.00054901,120]
[340711276,1729696294584,-1538.65,0.00054901,120]
[340711277,1729696294594,-500.0,0.00054901,120]
[340711278,1729696294603,-505.37,0.00054901,120]
[340711279,1729696294613,-554.06,0.00054901,120]
[340711280,1729696294622,-512.94,0.00054901,120]
[340711281,1729696294632,-500.0,0.00054901,120]
[340711282,1729696294641,-1145.54,0.00054901,120]
[340711283,1729696294651,-672.92,0.00054901,120]
[340711284,1729696294660,-542.37,0.00054901,120]
[340711285,1729696294670,-596.99420353,0.00054901,120]
[340711286,1729696294680,-922.62,0.00054901,120]
[340711287,1729696294690,-584.33,0.00054901,120]
[340711288,1729696294699,-753.53,0.00054901,120]
[340711289,1729696294709,-500.0,0.00054901,120]
[340711290,1729696294719,-968.55,0.00054901,120]
[340711291,1729696294730,-1925.48,0.00054901,120]
[340711292,1729696294740,-1030.77,0.00054901,120]
[340711293,1729696294750,-1363.34,0.00054901,120]
[340711294,1729696294760,-248.11673645,0.00054901,120]
[340711295,1729696294770,-847.01,0.00054901,120]
[340711296,1729696294779,-700.02,0.00054901,120]
[340711297,1729696294789,-622.74,0.00054901,120]
[340711298,1729696294800,-601.0,0.00054901,120]
[340711299,1729696294810,-1335.55,0.00054901,120]
[340711300,1729696294820,-884.17,0.00054901,120]
[340711301,1729696294830,-246.35903605,0.00054901,120]
[340711302,1729696294840,-500.0,0.00054901,7]
[340711303,1729696294849,-1593.84,0.00054901,120]
[340711304,1729696294859,-3057.1836664,0.00054924,2]
[340711305,1729696294868,-865.0,0.0005493,120]
[340711306,1729696294878,-150.0,0.00054932,120]
[340711307,1729696294887,-150.0,0.00054932,120]
[340711308,1729696294897,-1626.1639327,0.00054936,2]
[340711309,1729696294907,-1730.7744061,0.00054962,2]
[340711310,1729696294917,-2547.5256663,0.00054962,2]
[340711311,1729696294927,-4390.3185299,0.00054962,2]
[340711312,1729696294937,-1689.6166211,0.00054962,2]
[340711313,1729696294947,-835.69,0.00054974,120]
[340711314,1729696294957,-935.08,0.00054974,120]
[340711315,1729696294966,-500.0,0.00054974,120]
[340711316,1729696294976,-500.0,0.00054974,120]
[340711317,1729696294985,-2535.29,0.00054974,120]
[340711318,1729696294995,-1430.45,0.00054974,120]
[340711319,1729696295005,-2063.97,0.00054974,120]
[340711320,1729696295015,-500.0,0.00054974,120]
[340711321,1729696295024,-805.45,0.00054974,120]
[340711322,1729696295034,-500.0,0.00054975,120]
[340711323,1729696295045,-1011.7,0.00054975,120]
[340711324,1729696295055,-726.23,0.00054975,120]
[340711325,1729696295065,-150.0,0.00054978,120]
[340711326,1729696295074,-151.0,0.0005499,120]
[340711327,1729696295083,-151.0,0.0005499,120]
[340711328,1729696295093,-212.12136,0.0005499,120]
[340711329,1729696295102,-151.0,0.0005499,120]
[340711330,1729696295111,-155.767794,0.0005499,120]
[340711331,1729696295121,-151.0,0.0005499,120]
[340711332,1729696295130,-151.0,0.0005499,120]
[340711333,1729696295140,-151.0,0.0005499,120]
[340711334,1729696295150,-151.0,0.0005499,120]
[340711335,1729696295159,-151.0,0.0005499,120]
[340711336,1729696295168,-151.0,0.0005499,120]
[340711337,1729696295178,-1333.47,0.0005499,120]
[340711338,1729696295187,-947.6,0.0005499,120]
[340711339,1729696295197,-1028.07,0.0005499,120]
[340711340,1729696295206,-650.47,0.0005499,120]
[340711341,1729696295216,-1207.39,0.0005499,120]
[340711342,1729696295226,-833.24,0.0005499,120]
[340711343,1729696295235,-50000.0,0.00055,55]
[340711344,1729696295245,-50000.0,0.00055,65]
[340711345,1729696295254,-4000.0,0.00055,60]
[340711346,1729696295263,-12501.06454337,0.00055,5]
[340711347,1729696295272,-200.6477921,0.00055,120]
[340711348,1729696295283,-208.24366734,0.00055,120]
[340711349,1729696295292,-23157.0,0.00055,30]
[340711350,1729696295302,-900.0,0.00055,120]
[340711351,1729696295311,-162.0,0.00055,120]
[340711352,1729696295320,-396548.83335408,0.00055,120]
[340711353,1729696295492,-1335.29980942,0.00055,120]
[340711354,1729696295557,-500.0,0.00051786,120]
[340711355,1729696295566,-221.8755,0.00055,120]
[340711356,1729696295993,-500.0,0.0005206,120]
[340711357,1729696296003,-500.0,0.00052334,120]
[340711358,1729696296013,-1202.13,0.00052508,120]
[340711359,1729696296023,-500.0,0.00052608,120]
[340711360,1729696296034,-1202.13,0.00052782,120]
[340711361,1729696296046,-500.0,0.00052882,120]
[340711362,1729696296056,-1202.13,0.00053056,120]
[340711363,1729696296066,-500.0,0.00053156,120]
[340711364,1729696296076,-626.492,0.0005333,120]
[340711365,1729696296089,-288.13913114,0.0005333,120]
[340711366,1729696296102,-287.49886886,0.0005333,120]
[340711367,1729696296112,-45.8553836,0.0005343,120]
[340711368,1729696296331,-774.4,0.00049584,10]
[340711369,1729696296341,-454.1446164,0.0005343,120]
[340711370,1729696296351,-1202.13,0.00053604,120]
[340711371,1729696296360,-136.43928885,0.00053704,120]
[340711372,1729696296372,-363.56071115,0.00053704,120]
[340711373,1729696296381,-300.23928885,0.00053878,120]
[340711374,1729696296392,-354.11893621,0.00053878,120]
[340711375,1729696296406,-547.77177494,0.00053878,120]
[340711376,1729696296415,-391.97417581,0.00053978,120]
[340711377,1729696296425,-270.27253765,0.00054011,28]
[340711378,1729696296435,-1202.13,0.00054152,120]
[340711379,1729696296447,-1202.13,0.00054426,120]
[340711380,1729696296456,-1202.13,0.000547,120]
[340711381,1729696296466,-1202.13,0.00054974,120]
[340711382,1729696296476,-724.3515116,0.00055,120]
[340711383,1729696296488,-101169.6398249,0.00055,120]
[340711384,1729696296498,-274925.3259241,0.00055,120]
[340711385,1729696296510,-6733.528,0.00055,120]
[340711386,1729696296522,-175296.54253255,0.00055,120]
[340711387,1729696296534,-277.74998939,0.00055,120]
[340711388,1729696296546,-264.208,0.00055,120]
[340711389,1729696687668,157.53,0.00015342,2]
[340711390,1729696710801,292.28892219,0.0004375,120]
[340711392,1729696920132,5485.44741089,0.00041,2]
[340711393,1729696920156,10911.00586136,0.00041,2]
[340711394,1729697057517,151.0,0.0003,120]
[340711395,1729697058095,151.0,0.00032301,120]
[340711396,1729697058802,151.0,0.00034603,120]
[340711397,1729697059400,151.0,0.00036904,120]
[340711398,1729697059974,151.0,0.00039205,120]
[340711399,1729697060553,151.0,0.00041507,120]
[340711400,1729697061128,151.0,0.00043808,120]
[340711401,1729697069411,500.0,0.00035,2]
[340711402,1729697070865,150.0,0.00039533,120]
[340711403,1729697085039,429.32267226,0.0004,2]
[340711404,1729697262021,177.1930784,0.00045,60]
[340711405,1729697281603,307232.2569296,0.00011,2]
[340711406,1729697281629,10000.0,0.00011,2]
[340711407,1729697281654,10000.0,0.00011,2]
[340711408,1729697281679,10000.0,0.00011,2]
[340711409,1729697281706,10000.0,0.00011,2]
[340711410,1729697281731,10000.0,0.00011,2]
[340711411,1729697281756,10000.0,0.00011,2]
[340711412,1729697281781,10000.0,0.00011,2]
[340711413,1729697281813,279832.53163111,0.00011,2]
[340711422,1729697431858,-204.12171858,0.0003944,120]
[340711423,1729697431867,-155.67594902,0.00040589,2]
[340711424,1729697431879,-971.67541498,0.00040589,2]
[340711425,1729697431890,-661.49083,0.00040589,2]
[340711426,1729697431910,-339.96525867,0.00040589,2]
[340711427,1729697431939,-1886.18110529,0.00040589,2]
[340711428,1729697431948,-151.0,0.0004611,120]
[340711429,1729697431958,-253.87,0.00048024,2]
[340711430,1729697431967,-179.26,0.000484,2]
[340711431,1729697431978,-151.0,0.00048411,120]